Cogmind - Beta 16.1 @@@ ROGUE MODE // 2026.04.09 @ 09:04:26 Player: FALKE Result: Destroyed by 57-IFA(R) with Subdweller Laser Performance ------------- Evolutions (0) 0 Regions Visited (2) 400 Robots Destroyed (22) 110 Value Destroyed (355) 355 Prototype IDs (2) 40 Alien Tech Used (0) 0 Bonus (0) 0 TOTAL SCORE: 905 Bonus ------- None Cogmind --------- Core Integrity 0/250 Matter 214/300 Energy 250/250 System Corruption 0% Temperature Cool (6) Movement Rolling (95) Location -10/Subcaves Parts ------- > --- POWER (1) -------- Ion Engine > --- PROPULSION (2) --- Wheel Subdweller Monowheel > --- UTILITY (2) ------ Medium Storage Unit Signal Interpreter > --- WEAPON (2) ------- Light Assault Rifle Subdweller Machine Gun > --- INVENTORY (10) --- Ion Engine Compact Wheel High-capacity Battery (250) Medium Matter Pod (100) Sensor Array Transport Network Coupler Light Armor Plating Particle Gun Subdweller Machine Gun Mining Claw Peak State ------------ > --- POWER ------------ Ion Engine > --- PROPULSION ------- Compact Wheel Subdweller Monowheel > --- UTILITY ---------- Medium Storage Unit Signal Interpreter > --- WEAPON ----------- Particle Gun Subdweller Machine Gun > --- INVENTORY -------- Ion Engine Compact Wheel High-capacity Battery Medium Matter Pod Sensor Array Transport Network Coupler Light Armor Plating Small Laser Light Assault Rifle Mining Claw [Rating: 11] Favorites ----------- Power Ion Engine Engine Ion Engine Propulsion Wheel Leg Aluminum Leg Wheel Wheel Utility Medium Storage Unit Device Improved Terrain Scanner Storage Medium Storage Unit Processor Signal Interpreter Weapon Assault Rifle Energy Gun Particle Gun Ballistic Gun Assault Rifle Special Weapon Mining Laser Slashing Weapon Mining Claw Build | -11 -10 -10 ------- Run | Yrd Mat Sub Slots Evolved . | . . . Power . | . . . Propulsion . | . . . Utility . | . . . Weapon . | . . . Parts Attached 21 | 7 8 6 Power 2 | 1 . 1 Engine 2 | 1 . 1 Core . | . . . Reactor . | . . . Propulsion 7 | 2 2 3 Treads . | . . . Leg 2 | 2 . . Wheel 5 | . 2 3 Hover . | . . . Flight . | . . . Utility 4 | 2 2 . Device 1 | 1 . . Storage 2 | 1 1 . Processor 1 | . 1 . Hackware . | . . . Protection . | . . . Artifact . | . . . Weapon 8 | 2 4 2 Energy Gun 2 | 1 1 . Energy Cannon . | . . . Ballistic Gun 4 | 1 1 2 Ballistic Cannon . | . . . Launcher . | . . . Special Weapon 1 | . 1 . Impact Weapon . | . . . Slashing Weapon 1 | . 1 . Piercing Weapon . | . . . Special Melee Weapon . | . . . Unidentified Prototypes . | . . . Parts Lost 1 | . . 1 Power . | . . . Propulsion . | . . . Utility . | . . . Weapon 1 | . . 1 Highest Loss Streak 1 | . . 1 To Critical Strikes . | . . . Average Backups 7 | 6 7 9 Power . | . 1 1 Propulsion 2 | 3 2 1 Utility 2 | . 1 5 Weapon 2 | 1 2 2 Tool/Special . | . . . Unused Backups 12 | . 4 8 Power 1 | . . 1 Propulsion 3 | . 2 1 Utility 6 | . 2 4 Weapon 2 | . . 2 Tool/Special . | . . . Average Slot Usage (%) 99 | . 99 99 Engine 14 | . 14 14 Leg 2 | . 2 . Wheel 25 | . 25 28 Device 9 | . 12 . Storage 14 | . 14 14 Processor 4 | . 1 14 Energy Gun 5 | . 4 7 Ballistic Gun 15 | . 14 18 Special Weapon 5 | . 7 . Slashing Weapon 1 | . 1 1 Peak Build Rating 11 | 9 10 11 Average Rating 9 | 7 9 9 On Entrance 5 | . 9 8 Avg Prop Armor Cover (%) . | . . . Naked Turns . | . . . Heaviest Build 23 | 14 21 23 Greatest Support 36 | 20 26 36 Greatest Overweight (x) 2 | 2 . . Average Overweight (x) . | . . . Largest Inventory Capacity 10 | 8 10 10 Average Capacity 9 | 7 9 10 Most Carried 10 | 8 10 10 Average Carried 7 | 6 7 9 Final Capacity 10 | 8 10 10 Final Carried 10 | 7 10 10 Class Distribution -------------------- 84% | Mutant 15% | Scavenger-Mutant Dominant Class ---------------- Mutant | -10/Materials Scavenger-Mutant | -10/Subcaves Resources | -11 -10 -10 ----------- Run | Yrd Mat Sub Matter Collected 683 | 279 356 48 Remotely . | . . . Salvage Created 617 | 69 451 97 Parts 40 | 8 30 2 Haulers Intercepted 2 | . 2 . Recyclers Shooed 1 | . 1 . Parts Field Recycled . | . . . Retrieved Matter . | . . . Parts Self-Destructed 5 | . . 5 Prevented . | . . . Parts Restored . | . . . Kills | -11 -10 -10 ------- Run | Yrd Mat Sub Combat Hostiles Destroyed 14 | . 9 5 Guns 14 | . 9 5 Classes Destroyed 8 | 2 5 1 Builder 1 | . 1 . Tunneler 1 | 1 . . Hauler 2 | . 2 . Recycler 2 | 1 1 . Watcher 2 | . 2 . Swarmer 9 | . 6 3 Grunt 3 | . 3 . Subdweller 2 | . . 2 Best Kill Streak 4 | 2 4 3 Combat Bots Only 3 | . 3 3 Max Kills in Single Turn 2 | 1 1 2 Gunslinging 1 | . . 1 Exploded . | . . . Melee . | . . . Uniques/NPCs Destroyed . | . . . Combat | -11 -10 -10 -------- Run | Yrd Mat Sub Hostile Shots Fired 75 | . 33 42 Missed 20 | . 6 14 Hits 55 | . 27 28 Projectile 55 | . 27 28 Critical Strikes 1 | . . 1 Damage Taken 728 | . 258 470 Core 270 | . 113 157 Absorbed by Shields . | . . . Core Remaining (%) 100 | 100 . . Volleys Fired 60 | 3 41 16 Largest 2 | 2 2 2 Hottest 100 | 60 100 95 Shots Fired 99 | 6 61 32 Gun 85 | 6 47 32 Cannon . | . . . Launcher . | . . . Special 14 | . 14 . Kinetic 50 | 3 26 21 Thermal 49 | 3 35 11 Explosive . | . . . Electromagnetic . | . . . Robot Hit Streak 14 | 5 11 14 Robot Miss Streak 2 | . 2 2 Penetration Max . | . . . Secondary Targets 2 | . 1 1 Max Gunslinging Chain 1 | . 1 1 Shots Hit Robots 62 | 5 31 26 Core Hits 31 | 2 22 7 Critical Kills . | . . . Critical Parts Destroyed . | . . . Critical Strikes 2 | . . 2 Burn 2 | . . 2 Melee Attacks 10 | . 9 1 Impact . | . . . Slashing 10 | . 9 1 Piercing . | . . . Sneak Attacks . | . . . Combat Hostiles . | . . . Follow-up Attacks . | . . . Damage Inflicted 933 | 60 411 462 Guns 909 | 60 387 462 Cannons . | . . . Explosions . | . . . Melee . | . . . Ramming . | . . . Kinetic 512 | 29 162 321 Thermal 421 | 31 249 141 Explosive . | . . . Electromagnetic . | . . . Impact . | . . . Slashing . | . . . Piercing . | . . . Highest Corruption . | . . . Average Corruption . | . . . Corruption Purged . | . . . Corruption Blocked . | . . . Overload Shots . | . . . Overflow Damage . | . . . Projectiles . | . . . Explosions . | . . . Melee . | . . . Knockbacks . | . . . Impact . | . . . Kinetic . | . . . Secondary . | . . . Self-Inflicted Damage . | . . . Shots . | . . . Rammed . | . . . Targets Rammed . | . . . Kicked . | . . . Crushed . | . . . Highest Temperature 188 | . 188 8 Average Temperature 37 | . 38 4 Received Heat Transfer 108 | . 78 30 Siege Activations . | . . . Martial Activations . | . . . Shielding Activations . | . . . Robots Disrupted . | . . . Combat Hostiles . | . . . Robots Corrupted . | . . . Combat Hostiles . | . . . Parts Fried . | . . . Impact Corruptions . | . . . Robots Melted . | . . . Combat Hostiles . | . . . Parts Melted 2 | . . 2 Heat Transferred 1139 | 75 583 481 Parts Sabotaged . | . . . Parts Stolen . | . . . Parts Stripped . | . . . Power Chain Reactions . | . . . Alert | -11 -10 -10 ------- Run | Yrd Mat Sub Maximum Alert Level . | . . . Low Security (%) 100 | 100 100 . Level 1 . | . . . Level 2 . | . . . Level 3 . | . . . Level 4 . | . . . Level 5 . | . . . High Security . | . . . Max Security . | . . . Peak Influence 101 | 10 101 . Initial . | . . . Average 13 | . 16 . Influence Increases 407 | 10 327 70 Destroy 0b10 Robot/C 240 | . 180 60 Destroy 0b10 Robot/NC 40 | 10 30 . Destroy Leader 58 | . 48 10 Successful Hack 38 | . 38 . Disable Machine 15 | . 15 . Destroy Structure 16 | . 16 . Influence Decreases 407 | 10 315 82 Entered New Map 7 | . . 7 Time Decay 400 | 10 315 75 Squads Dispatched 1 | . 1 . Investigation 1 | . 1 . Extermination . | . . . Reinforcement . | . . . Assault . | . . . Garrison . | . . . Intercept . | . . . Searches Triggered . | . . . Construction Impeded . | . . . Haulers Reinforced . | . . . Active Scanning Responses . | . . . Cargo Convoy Interrupts . | . . . Stealth | -11 -10 -10 --------- Run | Yrd Mat Sub Distress Signals . | . . . Communications Jammed . | . . . Distress Signals . | . . . Times Spotted 20 | . 11 9 Peak Tracking Total 4 | . 3 4 Tactical Retreats . | . . . Traps | -11 -10 -10 ------- Run | Yrd Mat Sub Traps Triggered . | . . . Indirectly . | . . . Trap Hack Attempts . | . . . Triggered . | . . . Disarmed . | . . . Reprogrammed . | . . . Reused . | . . . Traps Extracted . | . . . Installed . | . . . Triggered . | . . . Machines | -11 -10 -10 ---------- Run | Yrd Mat Sub Machines Disabled 1 | . 1 . Max in Single Turn 1 | . 1 . Machines Repaired . | . . . Machines Dismantled . | . . . Machines Sabotaged . | . . . Overloaded Fab Kills . | . . . Hacking | -11 -10 -10 --------- Run | Yrd Mat Sub Machines Accessed 7 | . 7 . Terminals 5 | . 5 . Fabricators . | . . . Repair Stations 1 | . 1 . Recycling Units 1 | . 1 . Scanalyzers . | . . . Garrison Access . | . . . Total Hacks 21 | . 21 . Successful 12 | . 12 . Failed 9 | . 9 . Catastrophic 1 | . 1 . Database Lockouts . | . . . Manual . | . . . Terminals 14 | . 14 . Fabricators . | . . . Repair Stations 4 | . 4 . Recycling Units 3 | . 3 . Scanalyzers . | . . . Garrison Access . | . . . Terminal Hacks 9 | . 9 . Prototype ID Bank 1 | . 1 . Recycling Unit Index 1 | . 1 . Locate Traps 1 | . 1 . Recall Investigation 1 | . 1 . Hauler Manifests 2 | . 2 . Zone Layout 3 | . 3 . Fabricator Hacks . | . . . Repair Station Hacks 1 | . 1 . Scan Component 1 | . 1 . Recycling Unit Hacks 2 | . 2 . Report Inventory 1 | . 1 . Retrieve Components 1 | . 1 . Scanalyzer . | . . . Garrison Access Hacks . | . . . Unauthorized Hacks . | . . . Terminals . | . . . Fabricators . | . . . Repair Stations . | . . . Recycling Units . | . . . Scanalyzers . | . . . Garrison Access . | . . . Data Cores Recovered . | . . . Used . | . . . Hacking Detections 5 | . 5 . Full Trace Events 1 | . 1 . Feedback Events . | . . . Feedback Blocked . | . . . Robot Schematics Acquired . | . . . Robots Built . | . . . Authchips . | . . . Time . | . . . Total Robot Build Rating . | . . . Part Schematics Acquired . | . . . Parts Built . | . . . Authchips . | . . . Time . | . . . Total Part Build Rating . | . . . Part Studies Acquired . | . . . Parts Repaired . | . . . Time . | . . . Parts Recycled . | . . . Recycled Matter . | . . . Retrieved Matter . | . . . Retrieved Components 6 | . 6 . Parts Scanalyzed . | . . . Part Schematics Acquired . | . . . Parts Damaged . | . . . Bothacking | -11 -10 -10 ------------ Run | Yrd Mat Sub Used RIF Installer . | . . . Robots Hacked . | . . . Non-combat . | . . . Combat . | . . . Robot Hacks Applied . | . . . Relay Couplers Released . | . . . Fabnet Peak Effective % . | . . . Robots Rewired . | . . . Allies Hacked . | . . . Hacks Repelled . | . . . Allies | -11 -10 -10 -------- Run | Yrd Mat Sub Total Allies . | . . . Largest Group . | . . . Highest-Rated Group . | . . . Highest-Rated Ally . | . . . Total Orders . | . . . Ally Attacks . | . . . Total Damage . | . . . Kills . | . . . Allies Corrupted . | . . . Allies Melted . | . . . Intel | -11 -10 -10 ------- Run | Yrd Mat Sub Active Infowar (turns) 1708 | 311 1397 . Terrain 1708 | 311 1397 . Robot Analysis Total . | . . . Derelict Logs Recovered 1 | . . 1 Drone Launches . | . . . Drone Recoveries . | . . . Exploration | -11 -10 -10 ------------- Run | Yrd Mat Sub Turns Passed 2438 | 403 1591 444 Spaces Moved 886 | 75 452 359 Core 29 | 29 . . Treads . | . . . Legs 67 | 46 21 . Wheels 790 | . 431 359 Hover . | . . . Flight . | . . . Fastest Speed 50 | 50 90 90 Average Speed 94 | 102 91 95 Slowest Speed 150 | 150 120 105 Overloaded Moves . | . . . Propulsion Burnouts . | . . . Robots Hopped . | . . . Potential Cave-ins . | . . . Cave-ins Triggered . | . . . Exploration Rate (%) 29 | 5 55 27 Regions Visited 2 Branch Regions 1 Pre-discovered Areas 1 | . . 1 Known Exits Taken 1 | . 1 . Unknown Exits Taken 1 | 1 . . Scrap Searched . | . . . Spaces Dug 16 | . 16 . Terrain Destroyed 16 | . 16 . Melee 4 | . 4 . Projectile 12 | . 12 . AOE . | . . . Terrain Rammed . | . . . Walls Destroyed . | . . . Machines Disabled . | . . . Actions | -11 -10 -10 --------- Run | Yrd Mat Sub Total 2343 | 394 1523 426 Wait 1312 | 299 981 32 Move 884 | 74 451 359 Hop . | . . . Pick Up 27 | 11 13 3 Fast Attach 6 | 3 2 1 Attach 5 | 4 1 . Detach 1 | . 1 . Swap 20 | . 12 8 Drop 18 | . 12 6 Fire 60 | 3 41 16 Melee 10 | . 9 1 Ram . | . . . Kick . | . . . Crush . | . . . Escape Stasis . | . . . Rewire . | . . . Trap . | . . . Miscellaneous . | . . . Route ------- -11/Scrapyard -10/Materials (discovered 3 exits: *Mat x2 / *Sub) -10/Subcaves History --------- Turn | Location | Event 5 | -11/Scrapyard | Discovered new exit (range 16) 404 | -11/Scrapyard | Entered Materials 405 | -10/Materials | Build established: Mutant 627 | -10/Materials | Discovered new exit (range 6) 1105 | -10/Materials | Discovered new exit (range 16) 1784 | -10/Materials | Discovered new exit (range 5) 1809 | -10/Materials | Identified exit to Materials 1994 | -10/Materials | Identified exit to Subcaves 1995 | -10/Materials | Entered Subcaves 1996 | -10/Subcaves | Approached by a straggling Scientist 2045 | -10/Subcaves | Core integrity fell below 50% 2168 | -10/Subcaves | Learned location of Storage (-8) 2217 | -10/Subcaves | Shifting Twisted Machinery released Sub. Machine Gun 2232 | -10/Subcaves | Shifting Twisted Machinery released Sub. Machine Gun 2342 | -10/Subcaves | Build established: Scavenger-Mutant 2343 | -10/Subcaves | Core integrity fell below 20% 2439 | -10/Subcaves | Destroyed by 57-IFA(R) with Subdweller Laser Last Messages --------------- 02130_ Acquired Sub. Machine Gun. 02135_ Dropped Com. Wheel. 02139_ Subatomizers dissect the Disposable Heat Sink. 02149_ Sub. Optics melted. 02149_ Sub. Power Source melted. 02149_ EZ-LI6(R) destroyed. 02156_ Dropped Com. Wheel. 02168_ Subatomizers dissect the Com. Wheel. 02168_ Acquired derelict log, extracted data. World map updated: -8/Storage. Sub. Machine Gun falls loose from the Twisted Machinery. 02226_ Dropped Lgt. Assault Rifle. 02227_ Dropped Sml. Laser. Sub. Machine Gun falls loose from the Twisted Machinery. 02234_ Acquired Sub. Machine Gun. 02268_ J9-Y4A(R) suffers critical hit (Burn). 02297_ J9-Y4A(R) destroyed. 02304_ Acquired 15 matter. 02368_ Sub. Machine Gun destroyed. 02388_ Acquired Lgt. Assault Rifle. Map ----- +----------------------------------------------------+ | ##?????????????????????????????????????????? | | ##????????????????????????????????????????? | | #"" #????????????????????????????????????????? | | #########????????????????????????????????????????? | | ##?????????#?????????????????????????????????????? | | #????????? ##???????????????????????????????????? | | #????????? #???????????????????????????????????? | | #????????? #???????????????????????????????????? | | #????????? #???????????????????????????????????? | | #????????? #???????????????????????????????????? | | #?????????# ##??????????????????????????????????? | | #????????## #??????????????????????????????????? | | ##?????#### #????????????????????????????????#??? | | ######## #????????????????????????????????? ?? | | ## ######???####?######????????????## ?? | | ##### ### ##???????????# ?? | | #???????????# ? | | # # ###### ##R ##???????????# ? | | ######????## ####R #???#####???# # | | #??????????## ##??# ## #??## ##???# | | ###?????????###???# ### ##??# ##???# | | ##?????????????## ##?## ##???# #????# | | #?????????????# ###??####????# #????# | | ##??????###??# ## ##???# ####??# ###### | | ## #??? ### ### ##### #### # # ## | | ## # ### @ ## % | | ??? ##?# | | # ? #??# ### ## # | | ## ### ???## #### #### # | | % #?###?? ?????## #?# ##??# ## | | !####### #?????## ## ## #??? ### | | ?##&%## # !###???## ## ### ## #?? #?# | | ## && =*% #?### #######?###### ##? ? | | =# #%! ### ####????????# #?# ## | | ####### ## ##?????? #?# ? | | #?????# ## #????? ? # | | # #?????# #???? % ## | | # #####?## ### #???? ### % ?# | | # ##?# ## #??# ##??? ??## ? # | | # #?###### ###???###???? ????## ? ? | | # ## ##??????###????????????????????###?### ??? | | ########?????????????????????????????????????##??? | | ?????????????????????????????????????????????????? | | ?????????????????????????????????????????????????? | | ?????????????????????????????????????????????????? | | ?????????????????????????????????????????????????? | | ?????????????????????????????????????????????????? | | ?????????????????????????????????????????????????? | | ?????????????????????????????????????????????????? | | ?????????????????????????????????????????????????? | +----------------------------------------------------+ Best States ------------- Heat Dissipation 25 Energy Generation 10 Energy Capacity 250 Matter Stores 300 Matter Capacity 300 Sight Range 16 Terrain Scan Range 16 Terrain Scan Density 10 Evasion (%) 55 Item Schematics ----------------- None Robot Schematics ------------------ None Fabricated ------------ Nothing Repaired ---------- Nothing Studied --------- None Alien Tech Used ----------------- None Achievements -------------- None Challenges ------------ None Game ------ Seed HybridSmallUnit Manual? 0 Play Time 00:25:30 Cumulative 15.1 hours Start 2026.04.09 @ 07:40:53 End 2026.04.09 @ 09:04:26 Sessions 1 Manual Loads 0 Difficulty Rogue Special Mode None Game No. 24 Rogue 21 Adventurer 3 Explorer 0 Win Type - Total 0 Types 0/0/0/0/0/0/0/0/0/0 Lore% 13 Gallery% 15 Achievement% 14 Wizard Run 0 Options --------- Layout 0 ASCII 0 Keyboard 0 Movement Mouse Keybinds 0 Fullscreen 1 Font 24/Terminus Map View 76x50 Zoom Use 36% Tactical HUD 1 Map Filters NONE Filters NONE Steam 1 RUN: 25b9212f-9931-4667-b52a-d7671e09f552